bitfinex-derivatives/quotes_BTCF0:USTF0_20241025
["timestamp","ask_amount","ask_price","bid_price","bid_amount"]
[1729825356472,0.073388,68161.0,68160.0,0.17299353]
[1729825356777,0.073388,68161.0,68160.0,0.10005572]
[1729825356973,0.073388,68161.0,68160.0,0.05002786]
[1729825357164,0.073389,68160.0,68159.0,0.05833211]
[1729825357361,0.073389,68160.0,68159.0,0.04375584]
[1729825357566,0.12341786,68159.0,68158.0,0.04375584]
[1729825357765,0.07339,68159.0,68158.0,0.04375584]
[1729825358770,0.073393,68157.0,68156.0,0.1248874]
[1729825359970,0.21718105,68157.0,68156.0,0.1248874]
[1729825360674,0.1626035,68157.0,68156.0,0.1248874]
[1729825360864,0.1626035,68157.0,68156.0,0.1982814]
[1729825361673,0.1626035,68157.0,68156.0,0.1248874]
[1729825364776,0.1626035,68157.0,68156.0,0.1982814]
[1729825367072,0.073393,68157.0,68156.0,0.1982814]
[1729825373583,0.033,68159.0,68157.0,0.073391]
[1729825373885,0.106391,68159.0,68157.0,0.073391]
[1729825374278,0.073391,68158.0,68157.0,0.073391]
[1729825375074,0.1634402,68158.0,68157.0,0.073391]
[1729825376585,0.073393,68157.0,68156.0,0.07485954]
[1729825376787,0.073393,68157.0,68156.0,0.02483168]
[1729825376788,0.21347006,68157.0,68156.0,0.02483168]
[1729825376983,0.073394,68156.0,68155.0,0.10005572]
[1729825377186,0.1634432,68156.0,68155.0,0.10005572]
[1729825377987,0.21854895,68156.0,68155.0,0.10005572]
[1729825378987,0.21825119,68156.0,68155.0,0.10005572]
[1729825381289,0.073394,68156.0,68155.0,0.10005572]
[1729825381690,0.16360848,68156.0,68155.0,0.10005572]
[1729825381891,0.21880025,68156.0,68155.0,0.10005572]
[1729825382791,0.073394,68156.0,68155.0,0.10005572]
[1729825387183,0.36216,68162.0,68155.0,0.15008358]
[1729825387389,0.16120619,68164.0,68161.0,0.12341586]
[1729825387390,0.23459119,68164.0,68161.0,0.12341586]
[1729825387596,0.16120619,68164.0,68163.0,0.073386]
[1729825387786,0.16120619,68164.0,68163.0,1.665906]
[1729825388194,0.16120619,68164.0,68163.0,0.165906]
[1729825388596,0.16120619,68164.0,68163.0,1.665906]
[1729825388993,0.3608,68170.0,68163.0,1.68320284]
[1729825389199,0.3608,68170.0,68169.0,0.17343572]
[1729825391195,0.3608,68183.0,68169.0,0.15008358]
[1729825391496,0.434165,68183.0,68182.0,0.10005572]
[1729825392292,0.3608,68183.0,68182.0,0.17342172]
[1729825393707,0.3608,68183.0,68182.0,0.12466836]
[1729825394000,0.434165,68183.0,68182.0,0.12466836]
[1729825397113,0.073366,68182.0,68178.0,0.09392]
[1729825397302,0.14951673,68181.0,68178.0,0.09392]
[1729825397504,0.14951673,68180.0,68178.0,0.09392]
[1729825397799,0.21660841,68179.0,68176.0,0.3913721]
[1729825398104,0.21660841,68178.0,68177.0,0.19397572]
[1729825398311,0.14948682,68178.0,68177.0,0.19397572]
[1729825398509,0.14948682,68178.0,68177.0,0.10005572]
[1729825398716,0.14948682,68178.0,68177.0,0.19397572]
[1729825399200,0.14948682,68178.0,68177.0,0.10005572]
[1729825399201,0.22285682,68178.0,68177.0,0.10005572]
[1729825399397,0.22285682,68178.0,68177.0,0.19397572]
[1729825399997,0.14948682,68178.0,68177.0,0.19397572]
[1729825400596,0.14948682,68178.0,68177.0,0.26734672]
[1729825402304,0.31017407,68178.0,68177.0,0.26734672]
[1729825402896,0.21660841,68178.0,68177.0,0.26734672]
[1729825403096,0.14948682,68178.0,68177.0,0.26734672]
[1729825403802,0.25345183,68178.0,68177.0,0.167291]
[1729825404202,0.31019246,68178.0,68177.0,0.167291]
[1729825404709,0.21660841,68178.0,68177.0,0.167291]
[1729825404911,0.073366,68182.0,68176.0,0.02410986]
[1729825405206,0.073366,68182.0,68181.0,0.10005572]
[1729825406010,0.073351,68196.0,68182.0,0.073366]
[1729825406303,0.07335,68197.0,68195.0,0.17340772]
[1729825406510,0.0305,68199.0,68196.0,0.10005572]
[1729825407101,0.073349,68198.0,68196.0,0.10005572]
[1729825407304,0.0305,68199.0,68198.0,0.073348]
[1729825407699,0.103847,68199.0,68198.0,0.073348]
[1729825411614,0.15387486,68199.0,68198.0,0.073348]
[1729825411808,0.0305,68199.0,68196.0,0.12510872]
[1729825412015,0.0305,68199.0,68196.0,0.00767052]
[1729825412016,0.12337786,68197.0,68196.0,0.00767052]
[1729825412311,0.1456773,68197.0,68195.0,0.05002786]
[1729825412505,0.16085767,68201.0,68200.0,0.073346]
[1729825412712,0.20292428,68201.0,68200.0,0.12337386]
[1729825412909,0.14657582,68201.0,68200.0,0.12337386]
[1729825414324,0.14657582,68201.0,68200.0,0.09392]
[1729825414325,0.21992082,68201.0,68200.0,0.09392]
[1729825414514,0.073347,68199.0,68198.0,0.05002786]
[1729825414712,0.11542851,68199.0,68198.0,0.14394786]
[1729825414905,0.21992282,68199.0,68198.0,0.14394786]
[1729825415318,0.21992282,68199.0,68198.0,0.05002786]
[1729825415713,0.14657582,68199.0,68197.0,0.05002786]
[1729825415904,0.0321,68200.0,68196.0,0.3608]
[1729825415905,0.12337786,68197.0,68196.0,0.3608]
[1729825416105,0.073353,68194.0,68193.0,0.02455964]
[1729825416310,0.073353,68194.0,68188.0,0.434159]
[1729825416311,0.09094012,68194.0,68190.0,0.19397572]
[1729825416516,0.09094012,68194.0,68190.0,0.10005572]
[1729825416517,0.04208151,68193.0,68190.0,0.10005572]
[1729825416713,0.073356,68191.0,68190.0,0.10005572]
[1729825417016,0.07336,68187.0,68186.0,0.10005572]
[1729825417222,0.21638312,68187.0,68186.0,0.10005572]
[1729825419918,0.07336,68187.0,68186.0,0.10005572]
[1729825420221,0.3608,68195.0,68184.0,0.05822197]
[1729825420222,0.05002786,68188.0,68184.0,0.05822197]
[1729825420408,0.05002786,68184.0,68183.0,0.15210197]
[1729825420607,0.05002786,68184.0,68181.0,0.08234468]
[1729825420608,0.073366,68183.0,68181.0,0.08234468]
[1729825420824,0.073365,68183.0,68182.0,0.10005572]
[1729825421118,0.05002786,68184.0,68179.0,0.167248]
[1729825421119,0.073366,68182.0,68181.0,0.05822197]
[1729825421315,0.12339386,68182.0,68181.0,0.05822197]
[1729825421617,0.12339386,68182.0,68181.0,0.15827769]
[1729825422121,0.05002786,68182.0,68180.0,0.05822197]
[1729825422423,0.073367,68181.0,68180.0,0.05822197]
[1729825423719,0.073369,68180.0,68177.0,0.05447175]
[1729825423914,0.073369,68179.0,68177.0,0.12784275]
[1729825425419,0.07337,68179.0,68177.0,0.05447175]
[1729825425728,0.07337,68178.0,68177.0,0.05447175]
[1729825426520,0.07337,68178.0,68177.0,0.12784275]
[1729825426921,0.073371,68178.0,68175.0,0.09788167]
[1729825427116,0.073371,68178.0,68175.0,0.25013563]
[1729825427426,0.073371,68178.0,68175.0,0.17676263]
[1729825427625,0.073371,68178.0,68176.0,0.073372]
[1729825428228,0.07612698,68180.0,68175.0,0.17676263]
[1729825428414,0.07612698,68180.0,68177.0,0.07337]
[1729825428616,0.073365,68183.0,68177.0,0.07337]
[1729825428819,0.073369,68180.0,68177.0,0.07337]
[1729825429025,0.07612698,68181.0,68175.0,0.02450867]
[1729825429227,0.3608,68183.0,68174.0,0.3608]
[1729825429228,0.14949898,68176.0,68174.0,0.3608]
[1729825429419,0.073372,68176.0,68174.0,0.3608]
[1729825429727,0.073373,68175.0,68174.0,0.38668242]
[1729825430329,0.073373,68175.0,68174.0,0.26309646]
[1729825431424,0.073373,68175.0,68174.0,0.02588242]
[1729825431632,0.073373,68175.0,68172.0,0.073376]
[1729825432029,0.073373,68175.0,68172.0,0.09982402]
[1729825433031,0.073373,68175.0,68172.0,0.02644802]
[1729825433032,0.073375,68173.0,68172.0,0.02644802]
[1729825433224,0.073375,68173.0,68169.0,0.22563296]
[1729825433528,0.073375,68173.0,68170.0,0.073378]
[1729825434229,0.51169799,68177.0,68172.0,0.073376]
[1729825434434,0.434171,68177.0,68173.0,0.07612698]
[1729825435230,0.434171,68177.0,68174.0,0.16443165]
[1729825435436,0.073373,68175.0,68174.0,0.07277746]
[1729825435625,0.073373,68175.0,68174.0,0.16443191]
[1729825436231,0.073373,68175.0,68174.0,0.16441836]
[1729825437534,0.073373,68175.0,68173.0,0.14950198]
[1729825437535,0.073373,68175.0,68173.0,0.14889089]
[1729825437736,0.073373,68175.0,68174.0,0.07276391]
[1729825438430,0.073373,68175.0,68174.0,0.16445473]
[1729825439225,0.073373,68175.0,68174.0,0.09169082]
[1729825439636,0.073373,68175.0,68174.0,0.16445585]
[1729825440334,0.073373,68175.0,68174.0,0.1644588]
[1729825440534,0.073373,68175.0,68174.0,0.07276798]
[1729825440732,0.073373,68175.0,68173.0,0.07276798]
[1729825441134,0.3608,68177.0,68173.0,0.07276798]
[1729825441340,0.073373,68175.0,68174.0,0.07277366]
[1729825442129,0.073373,68175.0,68173.0,0.07277366]
[1729825442831,0.073373,68175.0,68174.0,0.00458871]
[1729825443233,0.073373,68175.0,68174.0,0.1644444]
[1729825443736,0.3608,68177.0,68174.0,0.16504474]
[1729825443939,0.3608,68177.0,68175.0,0.16446806]
[1729825444138,0.3608,68177.0,68175.0,0.07279732]
[1729825444343,0.3608,68177.0,68176.0,0.264366]
[1729825444637,0.0337,68186.0,68176.0,0.264366]
[1729825444638,0.3608,68183.0,68176.0,0.24152642]
[1729825444834,0.3608,68183.0,68182.0,0.17328148]
[1729825445040,0.3608,68183.0,68182.0,0.24610505]
[1729825445338,0.3608,68183.0,68182.0,0.26481617]
[1729825447439,0.3608,68183.0,68182.0,0.29068514]
[1729825447943,0.3608,68183.0,68182.0,0.37827845]
[1729825448335,0.3931,68197.0,68188.0,0.073358]
[1729825448536,0.073354,68193.0,68192.0,0.04995774]
[1729825448740,0.073354,68193.0,68192.0,0.09153469]
[1729825448934,0.04995774,68194.0,68192.0,0.0728523]
[1729825449135,0.073356,68191.0,68190.0,0.0728523]
[1729825449333,0.48411374,68191.0,68190.0,0.0728523]
[1729825449743,0.434156,68191.0,68190.0,0.0728523]
[1729825450245,0.434156,68191.0,68182.0,0.02586897]
[1729825450246,0.073364,68184.0,68182.0,0.02586897]
[1729825450441,0.04995774,68183.0,68177.0,0.0331]
[1729825450636,0.073367,68181.0,68179.0,0.073368]
[1729825450840,0.073367,68181.0,68177.0,0.12954]
[1729825450841,0.073367,68181.0,68180.0,0.106168]
[1729825451038,0.073367,68181.0,68180.0,0.05925306]
[1729825451856,0.073367,68181.0,68180.0,0.02645306]
[1729825452047,0.04995774,68182.0,68177.0,0.0331]
[1729825452048,0.04995774,68182.0,68177.0,0.09644]
[1729825452246,0.073368,68180.0,68177.0,0.09644]
[1729825452447,0.073368,68180.0,68177.0,0.12340315]
[1729825452639,0.12332674,68179.0,68177.0,0.12340315]
[1729825454547,0.12332674,68179.0,68177.0,0.22331863]
[1729825455941,0.073369,68179.0,68177.0,0.22331863]
[1729825456347,0.04995774,68182.0,68177.0,0.29668863]
[1729825456647,0.04995774,68182.0,68178.0,0.073369]
[1729825456847,0.04995774,68182.0,68180.0,0.04995774]
[1729825457049,0.04995774,68182.0,68181.0,0.17859273]
[1729825457440,0.12332374,68182.0,68181.0,0.0911599]
[1729825457852,0.12332374,68182.0,68181.0,0.17851811]
[1729825458246,0.073366,68182.0,68181.0,0.17851811]
[1729825458443,0.12332374,68182.0,68181.0,0.17851811]
[1729825459143,0.12332374,68182.0,68181.0,0.0911599]
[1729825460741,0.073366,68182.0,68181.0,0.10308906]
[1729825462352,0.12332374,68182.0,68181.0,0.10308906]
[1729825464248,0.12332374,68182.0,68181.0,0.09574804]
[1729825464752,0.12332374,68182.0,68181.0,0.20438764]
[1729825465251,0.12332374,68182.0,68181.0,0.0911599]
[1729825465648,0.12332374,68182.0,68181.0,0.09574807]
[1729825466151,0.12332374,68182.0,68181.0,0.0911599]
[1729825466655,0.12332374,68182.0,68181.0,0.19974909]
[1729825470255,0.12332374,68182.0,68181.0,0.0911599]
[1729825471465,0.12332374,68182.0,68181.0,0.10308904]
[1729825471952,0.12332374,68182.0,68181.0,0.09850091]
[1729825472259,0.12332374,68182.0,68181.0,0.00734101]
[1729825472260,0.1645008,68182.0,68181.0,0.00734101]
[1729825472460,0.1645008,68182.0,68177.0,0.02696315]
[1729825472659,0.12332374,68182.0,68176.0,0.073372]
[1729825473066,0.12332374,68182.0,68178.0,0.07337]
[1729825473266,0.04117948,68181.0,68178.0,0.07337]
[1729825473564,0.12332374,68182.0,68178.0,0.07337]
[1729825473754,0.11456518,68181.0,68178.0,0.07337]
[1729825473954,0.073367,68181.0,68178.0,0.07337]
[1729825475363,0.073367,68181.0,68179.0,0.01192917]
[1729825475764,0.073367,68181.0,68180.0,0.01192917]
[1729825475964,0.11454537,68181.0,68180.0,0.01192917]
[1729825476762,0.39542,68190.0,68180.0,0.06188691]
[1729825476763,0.04995774,68187.0,68180.0,0.06188691]
[1729825477066,0.04125305,68186.0,68185.0,0.073362]
[1729825477271,0.3608,68190.0,68189.0,0.073358]
[1729825477562,0.40214457,68190.0,68189.0,0.17327348]
[1729825478176,0.04134457,68190.0,68189.0,0.17327348]
[1729825479061,0.04154814,68192.0,68189.0,0.17327348]
[1729825479261,0.04154814,68191.0,68190.0,0.073357]
[1729825480265,0.04995774,68194.0,68190.0,0.27223259]
[1729825480454,0.11655774,68206.0,68191.0,0.19887559]
[1729825480455,0.04995774,68193.0,68191.0,0.19887559]
[1729825480655,0.073357,68191.0,68188.0,0.3608]
[1729825480860,0.073357,68191.0,68189.0,0.19913442]
[1729825481161,0.12331474,68191.0,68190.0,0.21106161]
[1729825482367,0.12331474,68191.0,68190.0,0.10277477]
[1729825482558,0.073357,68191.0,68190.0,0.19002938]
[1729825482755,0.434157,68191.0,68190.0,0.10277477]
[1729825482954,0.12331474,68191.0,68190.0,0.10277477]
[1729825483870,0.12331474,68191.0,68190.0,0.09084758]
[1729825484359,0.97403248,68191.0,68190.0,0.09084758]
[1729825484561,0.073358,68189.0,68183.0,0.07272078]
[1729825484764,0.04995774,68183.0,68182.0,0.08725461]
[1729825484966,0.04995774,68183.0,68170.0,0.19744882]
[1729825484967,0.04995774,68182.0,68179.0,0.0727551]
[1729825485170,0.04995774,68183.0,68178.0,0.07276266]
[1729825485171,0.17328448,68179.0,68178.0,0.07276266]
[1729825485465,0.12332674,68179.0,68178.0,0.07276266]
[1729825485671,0.20658448,68179.0,68178.0,0.07276266]
[1729825486056,0.15662674,68179.0,68178.0,0.07276266]
[1729825486367,0.073374,68175.0,68174.0,0.08725461]
[1729825486566,0.12333174,68175.0,68174.0,0.08725461]
[1729825487265,0.12333174,68175.0,68170.0,0.20399348]
[1729825487266,0.04995774,68174.0,68170.0,0.20399348]
[1729825488069,0.04995774,68174.0,68173.0,0.04995774]
[1729825488368,0.073374,68175.0,68173.0,0.09991548]
[1729825494174,0.41207774,68178.0,68173.0,0.09991548]
[1729825494377,0.41075774,68178.0,68177.0,0.09991548]
[1729825495780,0.073365,68183.0,68177.0,0.27247146]
[1729825495963,0.073365,68183.0,68181.0,0.07269687]
[1729825496163,0.073366,68182.0,68180.0,0.09991548]
[1729825496368,0.12332374,68182.0,68180.0,0.09991548]
[1729825497272,0.04995774,68182.0,68180.0,0.09991548]
[1729825497467,0.04995774,68185.0,68180.0,0.09991548]
[1729825497674,0.09991548,68183.0,68182.0,0.07269225]
[1729825498670,0.17328048,68183.0,68182.0,0.07269225]
[1729825499284,0.17328048,68183.0,68181.0,0.07269586]
[1729825499468,0.073369,68179.0,68164.0,0.00076]
[1729825499672,0.073395,68155.0,68151.0,0.3608]
[1729825499871,0.09991548,68152.0,68151.0,0.46020156]
[1729825500173,0.09991548,68152.0,68151.0,0.77240935]
[1729825500375,0.073398,68153.0,68151.0,0.77240935]
[1729825500576,0.073398,68153.0,68152.0,0.09211117]
[1729825500979,0.04995774,68153.0,68152.0,0.31220779]
[1729825501273,0.12335174,68156.0,68152.0,0.4429078]
[1729825501480,0.12335174,68156.0,68153.0,0.09211117]
[1729825501681,0.12335174,68156.0,68152.0,0.3934101]
[1729825501682,0.073395,68155.0,68154.0,0.09211117]
[1729825501882,0.073395,68155.0,68154.0,0.21959346]
[1729825502274,0.073395,68155.0,68153.0,0.22049908]
[1729825502476,0.073395,68155.0,68154.0,0.22049908]
[1729825502983,0.073395,68155.0,68153.0,0.22049908]
[1729825503483,0.3608,68157.0,68154.0,0.21910296]
[1729825503787,0.3608,68157.0,68154.0,0.29525387]
[1729825504078,0.3608,68157.0,68154.0,0.21910296]
[1729825504678,0.073394,68156.0,68154.0,0.21910296]
[1729825506886,0.3608,68157.0,68154.0,0.21910296]
[1729825507181,0.073395,68155.0,68154.0,0.21910296]
[1729825508481,0.3608,68157.0,68154.0,0.21910296]
[1729825508784,0.434193,68157.0,68154.0,0.21910296]
[1729825510287,0.073394,68156.0,68154.0,0.29249896]
[1729825511788,0.073395,68155.0,68154.0,0.21910296]
[1729825513983,0.3608,68157.0,68154.0,0.21910296]
[1729825514186,0.434193,68157.0,68154.0,0.29249896]
[1729825514888,0.434193,68157.0,68154.0,0.29708896]
[1729825515386,0.3608,68157.0,68156.0,0.07615091]
[1729825515588,0.43695091,68165.0,68156.0,0.07615091]
[1729825515589,0.36212,68165.0,68156.0,0.07615091]
[1729825515792,0.073386,68163.0,68160.0,0.15230182]
[1729825516294,0.073386,68163.0,68160.0,0.22569082]
[1729825516490,0.073386,68163.0,68161.0,0.073388]
[1729825516686,0.3608,68165.0,68161.0,0.073388]
[1729825516991,0.3608,68171.0,68164.0,0.15230182]
[1729825517193,0.3608,68171.0,68170.0,0.15230182]
[1729825518493,0.3608,68171.0,68170.0,0.22568082]
[1729825519486,0.39522,68178.0,68171.0,0.073377]
[1729825519680,0.073372,68176.0,68175.0,0.22567282]
[1729825520992,0.39522,68178.0,68175.0,0.15230182]
[1729825521194,0.3939,68178.0,68177.0,0.073371]
[1729825521394,0.46727,68178.0,68177.0,0.073371]
[1729825521795,0.43417,68178.0,68177.0,0.073371]
[1729825523289,0.3608,68178.0,68177.0,0.073371]
[1729825524289,0.3608,68178.0,68177.0,0.173279]
[1729825526994,0.073368,68180.0,68177.0,0.173279]
[1729825527193,0.073368,68180.0,68178.0,0.073369]
[1729825527791,0.073369,68179.0,68178.0,0.073369]
[1729825528395,0.123323,68179.0,68178.0,0.073369]
[1729825528799,0.073369,68179.0,68178.0,0.073369]
[1729825528992,0.123323,68179.0,68178.0,0.073369]
[1729825529993,0.073369,68179.0,68178.0,0.073369]
[1729825531202,0.073369,68179.0,68178.0,0.07795743]
[1729825532294,0.073369,68179.0,68178.0,0.00458843]
[1729825533596,0.073369,68179.0,68176.0,0.0308]
[1729825535004,0.073369,68179.0,68177.0,0.073371]
[1729825535203,0.073366,68182.0,68179.0,0.073369]
[1729825535405,0.073367,68181.0,68180.0,0.049954]
[1729825536999,0.3608,68185.0,68180.0,0.123322]
[1729825538403,0.073367,68181.0,68180.0,0.049954]
[1729825540104,0.410754,68185.0,68180.0,0.123321]
[1729825540304,0.073365,68183.0,68180.0,0.123321]
[1729825540708,0.073366,68182.0,68180.0,0.123321]
[1729825540907,0.073366,68182.0,68180.0,0.073367]
[1729825541411,0.073366,68182.0,68178.0,0.07268582]
[1729825543204,0.36216,68185.0,68179.0,0.07268582]
[1729825543406,0.3608,68185.0,68182.0,0.049954]
[1729825543607,0.3608,68185.0,68183.0,0.073364]
[1729825544905,0.434163,68185.0,68181.0,0.14605282]
[1729825545112,0.3608,68185.0,68182.0,0.08722845]
[1729825545308,0.3608,68185.0,68183.0,0.14604982]
[1729825546206,0.3608,68185.0,68184.0,0.15997901]
[1729825546807,0.3608,68185.0,68184.0,0.08729319]
[1729825547612,0.3608,68185.0,68184.0,0.16065619]
[1729825548614,0.3608,68185.0,68184.0,0.073363]
[1729825550116,0.073347,68200.0,68184.0,0.073363]
[1729825550117,0.3608,68199.0,68184.0,1.12040087]
[1729825550410,0.3608,68199.0,68198.0,0.073348]
[1729825550818,0.410754,68199.0,68198.0,0.073348]
[1729825551001,0.049954,68198.0,68194.0,0.073352]
[1729825551200,0.049954,68195.0,68194.0,0.073352]
[1729825551413,0.049954,68194.0,68192.0,0.033]
[1729825552010,0.123307,68194.0,68192.0,0.033]
[1729825552205,0.049954,68193.0,68192.0,0.033]
[1729825552604,0.073353,68194.0,68192.0,0.033]
[1729825553208,0.073353,68194.0,68192.0,0.05421401]
[1729825558724,0.073353,68194.0,68193.0,0.049954]
[1729825559424,0.049954,68196.0,68193.0,0.049954]
[1729825559617,0.049954,68196.0,68194.0,0.049954]
[1729825559927,0.07335,68197.0,68194.0,0.049954]
[1729825560220,0.07335,68197.0,68196.0,0.049954]
[1729825561915,0.07335,68197.0,68194.0,0.099908]
[1729825562116,0.073351,68196.0,68194.0,0.099908]
[1729825562722,0.073352,68195.0,68194.0,0.099908]
[1729825562924,0.073352,68195.0,68194.0,0.049954]
[1729825563423,0.073352,68195.0,68192.0,0.12756901]
[1729825563614,0.073352,68195.0,68193.0,0.073354]
[1729825563824,0.049954,68196.0,68192.0,0.05421401]
[1729825563825,0.073353,68194.0,68192.0,0.05421401]
[1729825564125,0.073353,68194.0,68192.0,0.12756801]
[1729825565731,0.049954,68196.0,68192.0,0.12756801]
[1729825566225,0.073352,68195.0,68192.0,0.12756801]
[1729825566828,0.049954,68193.0,68192.0,0.02121401]
[1729825567128,0.049954,68193.0,68186.0,0.00076]
[1729825567129,0.43996,68192.0,68171.0,0.0008]
[1729825567430,0.3608,68193.0,68171.0,0.0008]
[1729825567431,0.3608,68174.0,68171.0,0.02161771]
[1729825567620,0.3608,68174.0,68173.0,0.049954]
[1729825569433,0.173281,68176.0,68173.0,0.049954]
[1729825570025,0.073373,68176.0,68174.0,0.0304]
[1729825570222,0.123327,68176.0,68174.0,0.0304]
[1729825570422,0.049954,68179.0,68174.0,0.080354]
[1729825570722,0.3608,68180.0,68178.0,0.173278]
[1729825570923,0.073363,68185.0,68178.0,0.173278]
[1729825571126,0.073363,68185.0,68183.0,0.099908]
[1729825571927,0.049954,68183.0,68180.0,0.099908]
[1729825572433,0.073364,68184.0,68180.0,0.099908]
[1729825574334,0.049954,68182.0,68180.0,0.099908]
[1729825574834,0.049954,68182.0,68180.0,0.173276]
[1729825575134,0.049954,68182.0,68181.0,0.106067]
[1729825577933,0.049954,68183.0,68181.0,0.1134084]
[1729825578135,0.049954,68183.0,68181.0,0.11799677]
[1729825578339,0.049954,68183.0,68181.0,0.08724237]
[1729825578534,0.073364,68184.0,68182.0,0.073366]
[1729825579531,0.073364,68184.0,68181.0,0.13719637]
[1729825579733,0.073364,68184.0,68183.0,0.073365]
[1729825580336,0.123318,68184.0,68183.0,0.073365]
[1729825580940,0.173272,68184.0,68183.0,0.073365]
[1729825582429,0.173272,68184.0,68181.0,0.03728837]
[1729825583142,0.073365,68183.0,68181.0,0.03728837]
[1729825585343,0.073365,68183.0,68181.0,0.0327]
[1729825586537,0.049954,68182.0,68181.0,0.0327]
[1729825588056,0.073367,68181.0,68180.0,0.02063533]
[1729825588250,0.073367,68181.0,68175.0,0.0311]
[1729825588251,0.073372,68176.0,68175.0,0.0311]
[1729825588448,0.123326,68176.0,68175.0,0.0311]
[1729825588654,0.073372,68176.0,68175.0,0.05222226]
[1729825588960,0.123326,68176.0,68175.0,0.05222226]
[1729825591149,0.17328,68176.0,68175.0,0.02112226]
[1729825591349,0.073382,68167.0,68166.0,0.0324]
[1729825591558,0.123336,68167.0,68166.0,0.0324]
[1729825597864,0.123336,68167.0,68164.0,0.05228327]
[1729825597865,0.073384,68165.0,68164.0,0.05228327]
[1729825598162,0.073384,68165.0,68164.0,0.02148327]
[1729825598364,0.049954,68166.0,68161.0,0.3608]
[1729825598564,0.123341,68162.0,68161.0,0.3608]
[1729825599655,0.049954,68161.0,68159.0,0.07258448]
[1729825599861,0.049954,68161.0,68158.0,0.10478448]
[1729825600057,0.049954,68159.0,68158.0,0.10478448]
[1729825600264,0.049954,68159.0,68158.0,0.12545739]
[1729825600467,0.049954,68159.0,68158.0,0.05287291]
[1729825604062,0.173298,68159.0,68158.0,0.05287291]
[1729825604563,0.123344,68159.0,68158.0,0.05287291]
[1729825604765,0.173298,68159.0,68158.0,0.05287291]
[1729825604955,0.123344,68159.0,68158.0,0.05287291]
[1729825605155,0.173298,68159.0,68158.0,0.02067291]
[1729825605360,0.049954,68158.0,68155.0,0.0313]
[1729825605563,0.173302,68156.0,68155.0,0.05261054]
[1729825606971,0.073399,68151.0,68150.0,0.0315]
[1729825607161,0.123353,68151.0,68150.0,0.0315]
[1729825607464,0.123353,68151.0,68150.0,0.05245311]
[1729825607867,0.484153,68151.0,68150.0,0.05245311]
[1729825611559,0.484153,68151.0,68150.0,0.02095311]
[1729825611863,0.049954,68150.0,68139.0,0.0633]
[1729825612074,0.123365,68140.0,68139.0,0.0633]
[1729825613772,0.073411,68140.0,68139.0,0.0633]
[1729825613973,0.073411,68140.0,68139.0,0.0673]
[1729825614169,0.073411,68140.0,68139.0,0.0713]
[1729825614370,0.073411,68140.0,68139.0,0.121254]
[1729825616782,0.073411,68140.0,68139.0,0.1258451]
[1729825617974,0.073411,68140.0,68139.0,0.121254]
[1729825618770,0.073411,68140.0,68139.0,0.117254]
[1729825619975,0.3608,68143.0,68139.0,0.117254]
[1729825620277,0.3608,68143.0,68142.0,0.049954]
[1729825621370,0.434208,68143.0,68142.0,0.049954]
[1729825621576,0.123363,68142.0,68139.0,0.186665]
[1729825621776,0.049954,68141.0,68139.0,0.136711]
[1729825621974,0.049954,68140.0,68139.0,0.136711]
[1729825622174,0.410754,68143.0,68139.0,0.236619]
[1729825622375,0.3608,68143.0,68140.0,0.049954]
[1729825622685,0.173315,68144.0,68140.0,0.049954]
[1729825622686,0.099908,68144.0,68140.0,0.049954]
[1729825622876,0.099908,68144.0,68140.0,0.123365]
[1729825623271,0.099908,68144.0,68140.0,0.049954]
[1729825623473,0.07341,68142.0,68140.0,0.049954]
[1729825623777,0.073411,68140.0,68139.0,0.0333]
[1729825624375,0.123365,68140.0,68139.0,0.0333]
[1729825624974,0.123366,68139.0,68138.0,0.02157573]
[1729825625187,0.049954,68139.0,68137.0,0.04354721]
[1729825625382,0.073414,68137.0,68136.0,0.04354721]
[1729825625578,0.073417,68135.0,68132.0,0.0339]
[1729825625778,0.049954,68134.0,68132.0,0.0339]
[1729825625982,0.073418,68133.0,68132.0,0.0339]
[1729825626779,0.073418,68133.0,68132.0,0.0379]
[1729825627184,0.073418,68133.0,68132.0,0.05513271]
[1729825628076,0.073418,68133.0,68132.0,0.01723271]
[1729825628281,0.073418,68133.0,68130.0,0.04356367]
[1729825628282,0.049954,68132.0,68129.0,0.04356367]
[1729825628480,0.073422,68130.0,68129.0,0.04356367]
[1729825628992,0.073422,68130.0,68129.0,0.06057634]
[1729825630888,0.073422,68130.0,68129.0,0.01701267]
[1729825631095,0.049954,68129.0,68126.0,0.04356367]
[1729825631282,0.073425,68127.0,68126.0,0.04356367]
[1729825631477,0.049954,68128.0,68125.0,0.0349]
[1729825631682,0.12338,68126.0,68125.0,0.0349]
[1729825632183,0.12338,68126.0,68125.0,0.05170786]
[1729825633583,0.12338,68126.0,68125.0,0.10978512]
[1729825633988,0.48418,68126.0,68125.0,0.10978512]
[1729825634188,0.48418,68126.0,68125.0,0.05170786]
[1729825635284,0.48418,68126.0,68125.0,0.10982332]
[1729825635485,0.48418,68126.0,68125.0,0.05170786]
[1729825637594,0.434226,68126.0,68125.0,0.05170786]
[1729825637781,0.48418,68126.0,68125.0,0.05170786]
[1729825638092,0.48418,68126.0,68125.0,0.0563]
[1729825638302,0.48418,68126.0,68125.0,0.06364743]
[1729825639596,0.48418,68126.0,68125.0,0.075587]
[1729825640490,0.48418,68126.0,68125.0,0.06823957]
[1729825642189,0.48418,68126.0,68125.0,0.0563]
[1729825642593,0.48418,68126.0,68125.0,0.05170786]
[1729825647201,0.48418,68126.0,68125.0,0.06364743]
[1729825647402,0.48418,68126.0,68125.0,0.05170786]
[1729825648604,0.3608,68139.0,68129.0,0.073422]
[1729825648605,0.3608,68132.0,68129.0,0.073422]
[1729825648799,0.3608,68132.0,68130.0,0.0328]
[1729825648800,0.410754,68132.0,68130.0,0.0328]
[1729825649106,0.410754,68132.0,68130.0,0.106222]
[1729825649607,0.073421,68131.0,68130.0,0.0328]
[1729825651415,0.073421,68131.0,68130.0,0.106222]
[1729825652100,0.073421,68131.0,68130.0,0.26795512]
[1729825652299,0.073421,68131.0,68130.0,0.19525718]
[1729825653906,0.073421,68131.0,68130.0,0.1953129]
[1729825656311,0.073421,68131.0,68130.0,0.28244626]
[1729825656513,0.073421,68131.0,68130.0,0.1953129]
[1729825657504,0.073421,68131.0,68130.0,0.1218909]